Cogmind - Beta 14 @@@ ROGUE MODE // 2024.10.08 @ 14:51:37 Player: Gatamar Result: Destroyed by ZB-53R(R) with Subdweller Machine Gun Performance ------------- Evolutions (0) 0 Regions Visited (3) 600 Robots Destroyed (12) 60 Value Destroyed (291) 291 Prototype IDs (0) 0 Alien Tech Used (0) 0 Bonus (0) 0 TOTAL SCORE: 951 Bonus ------- None Cogmind --------- Core Integrity 0/250 Matter 293/300 Energy 100/100 System Corruption 1% Temperature Cool (0) Movement Walking (400) Ox4 Location -10/Subcaves Parts ------- > --- POWER (1) -------- (None) > --- PROPULSION (2) --- Aluminum Leg Aluminum Leg > --- UTILITY (2) ------ Huge Storage Unit > --- WEAPON (2) ------- Assault Rifle Battle Cannon > --- INVENTORY (25) --- Light Ion Engine Armored Treads Aluminum Leg Compact Wheel Cryofiber Web Heat Sink Small Storage Unit Large Matter Pod (150) Advanced Weight Redist. System Subdweller Optics Medium Laser Medium Laser Small Laser Ion Cannon Minigun Battle Cannon Grenade Launcher Datajack Datajack Piercing Trap Peak State ------------ > --- POWER ------------ Ion Engine > --- PROPULSION ------- Light Treads Light Treads > --- UTILITY ---------- Huge Storage Unit Reactive Plating > --- WEAPON ----------- Assault Rifle Light Cannon > --- INVENTORY -------- Light Ion Engine Armored Treads Aluminum Leg Aluminum Leg Aluminum Leg Compact Wheel Cryofiber Web Heat Sink Small Storage Unit Large Matter Pod Advanced Weight Redist. System Medium Laser Medium Laser Small Laser Ion Cannon Minigun Datajack Datajack [Rating: 11] Favorites ----------- Power Ion Engine Engine Ion Engine Propulsion Light Treads Treads Light Treads Leg Aluminum Leg Utility Huge Storage Unit Device Terrain Scanner Storage Huge Storage Unit Protection Reactive Plating Weapon Light Cannon Energy Gun Medium Laser Ballistic Gun Assault Rifle Ballistic Cannon Light Cannon Special Melee Weapon Datajack Build | -11 -10 -10 -10 ------- Run | Yrd Mat Min Sub Slots Evolved . | . . . . Power . | . . . . Propulsion . | . . . . Utility . | . . . . Weapon . | . . . . Parts Attached 21 | 6 11 1 3 Power 1 | 1 . . . Engine 1 | 1 . . . Core . | . . . . Reactor . | . . . . Propulsion 6 | 2 2 . 2 Treads 2 | . 2 . . Leg 4 | 2 . . 2 Wheel . | . . . . Hover . | . . . . Flight . | . . . . Utility 5 | 1 3 1 . Device 2 | . 2 . . Storage 2 | 1 1 . . Processor . | . . . . Hackware . | . . . . Protection 1 | . . 1 . Artifact . | . . . . Weapon 9 | 2 6 . 1 Energy Gun 3 | 2 1 . . Energy Cannon . | . . . . Ballistic Gun 2 | . 2 . . Ballistic Cannon 3 | . 2 . 1 Launcher . | . . . . Special Weapon . | . . . . Impact Weapon . | . . . . Slashing Weapon . | . . . . Piercing Weapon . | . . . . Special Melee Weapon 1 | . 1 . . Unidentified Prototypes . | . . . . Parts Lost 6 | . 1 . 5 Power 1 | . . . 1 Propulsion 2 | . . . 2 Utility 2 | . 1 . 1 Weapon 1 | . . . 1 Highest Loss Streak 3 | . 1 . 3 To Critical Strikes . | . . . . Average Slot Usage (%) 95 | . 97 100 83 Engine 13 | . 14 14 8 Treads 23 | . 23 28 17 Leg 3 | . 3 . 7 Device 7 | . 13 . . Storage 14 | . 14 14 14 Protection 5 | . . 13 9 Energy Gun 3 | . 6 . . Ballistic Gun 10 | . 8 14 14 Ballistic Cannon 11 | . 10 14 10 Peak Build Rating 11 | 6 8 11 11 Average Rating 8 | 4 7 10 9 On Entrance 6 | . 6 8 11 Naked Turns . | . . . . Heaviest Build 100 | 13 91 100 100 Greatest Support 40 | 20 40 40 40 Greatest Overweight (x) 31 | 2 8 2 31 Average Overweight (x) 1 | . 1 2 2 Largest Inventory Capacity 25 | 8 25 25 25 Average Capacity 23 | 6 23 25 25 Most Carried 21 | 6 12 19 21 Average Carried 13 | 3 9 17 19 Final Capacity 25 | 8 25 25 25 Final Carried 20 | 6 12 19 20 Class Distribution -------------------- 100% | Mutant Dominant Class ---------------- Mutant | -10/Materials Mutant | -10/Mines Mutant | -10/Subcaves Resources | -11 -10 -10 -10 ----------- Run | Yrd Mat Min Sub Matter Collected 902 | 191 567 13 131 Remotely . | . . . . Salvage Created 261 | . 255 . 6 Parts 22 | . 21 . 1 Haulers Intercepted . | . . . . Recyclers Shooed . | . . . . Parts Field Recycled . | . . . . Retrieved Matter . | . . . . Parts Self-Destructed 11 | . . . 11 Prevented . | . . . . Kills | -11 -10 -10 -10 ------- Run | Yrd Mat Min Sub Combat Hostiles Destroyed 8 | . 7 . 1 Guns 3 | . 2 . 1 Cannons 5 | . 5 . . Classes Destroyed 6 | . 5 . 1 Worker 1 | . 1 . . Builder 1 | . 1 . . Watcher 2 | . 2 . . Swarmer 2 | . 2 . . Grunt 5 | . 5 . . Subdweller 1 | . . . 1 Best Kill Streak 2 | . 2 . 1 Combat Bots Only 2 | . 2 . 1 Max Kills in Single Turn 1 | . 1 . 1 Gunslinging . | . . . . Exploded . | . . . . Melee . | . . . . Uniques/NPCs Destroyed . | . . . . Combat | -11 -10 -10 -10 -------- Run | Yrd Mat Min Sub Hostile Shots Fired 115 | . 73 . 42 Missed 45 | . 30 . 15 Damage Taken 1210 | . 483 . 727 Core 263 | . 104 . 159 Absorbed by Shields . | . . . . Regen/Repaired (Parts) 44 | . 44 . . Core Remaining (%) 100 | 100 . . . Volleys Fired 70 | . 51 . 19 Largest 2 | . 2 . 2 Hottest 85 | . 85 . 55 Shots Fired 119 | . 89 . 30 Gun 72 | . 53 . 19 Cannon 47 | . 36 . 11 Launcher . | . . . . Special . | . . . . Kinetic 97 | . 67 . 30 Thermal 22 | . 22 . . Explosive . | . . . . Electromagnetic . | . . . . Robot Hit Streak 19 | . 7 . 19 Robot Miss Streak 8 | . 8 . 2 Penetration Max . | . . . . Secondary Targets . | . . . . Shots Hit Robots 77 | . 52 . 25 Core Hits 20 | . 17 . 3 Critical Kills . | . . . . Critical Parts Destroyed . | . . . . Critical Strikes 2 | . 2 . . Burn 2 | . 2 . . Melee Attacks 5 | . 5 . . Impact . | . . . . Slashing . | . . . . Piercing . | . . . . Sneak Attacks 3 | . 3 . . Combat Hostiles . | . . . . Follow-up Attacks . | . . . . Damage Inflicted 975 | . 721 9 245 Guns 470 | . 344 . 126 Cannons 483 | . 364 . 119 Explosions . | . . . . Melee . | . . . . Ramming 22 | . 13 9 . Kinetic 842 | . 597 . 245 Thermal 111 | . 111 . . Explosive . | . . . . Electromagnetic . | . . . . Impact . | . . . . Slashing . | . . . . Piercing . | . . . . Highest Corruption 1 | . 1 1 1 Average Corruption 1 | . 1 1 1 Corruption Purged . | . . . . Corruption Blocked . | . . . . Effects 20 | . 5 13 2 Message Errors 3 | . 1 2 . Matter Fused 7 | . 2 3 2 Heat Flow Errors 4 | . 1 3 . Energy Discharges 3 | . . 3 . Data Loss (minor) 2 | . . 2 . Data Loss (major) 1 | . 1 . . Overload Shots . | . . . . Overflow Damage . | . . . . Projectiles . | . . . . Explosions . | . . . . Melee . | . . . . Knockbacks 8 | . 6 . 2 Impact . | . . . . Kinetic 8 | . 6 . 2 Secondary . | . . . . Self-Inflicted Damage . | . . . . Shots . | . . . . Rammed 2 | . 1 1 . Targets Rammed 2 | . 1 1 . Kicked . | . . . . Crushed . | . . . . Highest Temperature 277 | . 255 267 277 Average Temperature 92 | . 80 107 143 Received Heat Transfer 752 | . 255 . 497 Siege Activations . | . . . . Robots Corrupted . | . . . . Combat Hostiles . | . . . . Parts Fried . | . . . . Impact Corruptions . | . . . . Robots Melted . | . . . . Combat Hostiles . | . . . . Parts Melted . | . . . . Heat Transferred 481 | . 481 . . Parts Sabotaged . | . . . . Parts Stolen . | . . . . Parts Stripped . | . . . . Power Chain Reactions . | . . . . Alert | -11 -10 -10 -10 ------- Run | Yrd Mat Min Sub Peak Influence 132 | . 132 1 . Initial 1 | . . 1 . Average 18 | . 29 . . Maximum Alert Level . | . . . . Low Security (%) 100 | 100 100 100 . Level 1 . | . . . . Level 2 . | . . . . Level 3 . | . . . . Level 4 . | . . . . Level 5 . | . . . . High Security . | . . . . Max Security . | . . . . Squads Dispatched 4 | . 3 1 . Investigation 2 | . 1 1 . Extermination . | . . . . Reinforcement 2 | . 2 . . Assault . | . . . . Garrison . | . . . . Intercept . | . . . . Searches Triggered . | . . . . Construction Impeded . | . . . . Haulers Reinforced . | . . . . Active Scanning Responses . | . . . . Cargo Convoy Interrupts . | . . . . Stealth | -11 -10 -10 -10 --------- Run | Yrd Mat Min Sub Distress Signals . | . . . . Communications Jammed . | . . . . Distress Signals . | . . . . Times Spotted 19 | . 17 . 2 Peak Tracking Total 5 | . 5 . 1 Tactical Retreats 1 | . 1 . . Traps | -11 -10 -10 -10 ------- Run | Yrd Mat Min Sub Traps Triggered 1 | . 1 . . Indirectly . | . . . . Trap Hack Attempts . | . . . . Triggered . | . . . . Disarmed . | . . . . Reprogrammed . | . . . . Reused . | . . . . Traps Extracted . | . . . . Installed . | . . . . Triggered . | . . . . Most Traps Carried 1 | . . . 1 Machines | -11 -10 -10 -10 ---------- Run | Yrd Mat Min Sub Machines Disabled 1 | . 1 . . Max in Single Turn 1 | . 1 . . Machines Repaired . | . . . . Machines Dismantled . | . . . . Machines Sabotaged . | . . . . Overloaded Fab Kills . | . . . . Hacking | -11 -10 -10 -10 --------- Run | Yrd Mat Min Sub Machines Accessed 7 | . 6 1 . Terminals 3 | . 3 . . Fabricators . | . . . . Repair Stations 1 | . 1 . . Recycling Units 2 | . 2 . . Scanalyzers . | . . . . Garrison Access . | . . . . Total Hacks 21 | . 20 1 . Successful 12 | . 11 1 . Failed 9 | . 9 . . Catastrophic . | . . . . Database Lockouts . | . . . . Manual . | . . . . Terminals 9 | . 9 . . Fabricators . | . . . . Repair Stations 2 | . 2 . . Recycling Units 9 | . 9 . . Scanalyzers . | . . . . Garrison Access . | . . . . Terminal Hacks 6 | . 5 1 . Open Door 1 | . . 1 . Locate Traps 2 | . 2 . . Dispatch Records 1 | . 1 . . Zone Layout 2 | . 2 . . Fabricator Hacks . | . . . . Repair Station Hacks 2 | . 2 . . Scan Component 1 | . 1 . . Repair 1 | . 1 . . Recycling Unit Hacks 4 | . 4 . . Process 1 | . 1 . . Report Inventory 2 | . 2 . . Retrieve Matter 1 | . 1 . . Scanalyzer . | . . . . Garrison Access Hacks . | . . . . Unauthorized Hacks . | . . . . Terminals . | . . . . Fabricators . | . . . . Repair Stations . | . . . . Recycling Units . | . . . . Scanalyzers . | . . . . Garrison Access . | . . . . Data Cores Recovered . | . . . . Used . | . . . . Hacking Detections 5 | . 5 . . Full Trace Events 2 | . 2 . . Feedback Events 1 | . 1 . . Corruption 1 | . 1 . . Feedback Blocked . | . . . . Robot Schematics Acquired . | . . . . Robots Built . | . . . . Authchips . | . . . . Time . | . . . . Total Robot Build Rating . | . . . . Part Schematics Acquired . | . . . . Parts Built . | . . . . Authchips . | . . . . Time . | . . . . Total Part Build Rating . | . . . . Parts Repaired 1 | . 1 . . Time 26 | . 26 . . Parts Recycled . | . . . . Recycled Matter 7 | . 7 . . Retrieved Matter 7 | . 7 . . Retrieved Components . | . . . . Parts Scanalyzed . | . . . . Part Schematics Acquired . | . . . . Parts Damaged . | . . . . Bothacking | -11 -10 -10 -10 ------------ Run | Yrd Mat Min Sub Used RIF Installer . | . . . . Robots Hacked 2 | . 2 . . Non-combat 1 | . 1 . . Combat 1 | . 1 . . Robot Hacks Applied 4 | . 4 . . parse_system 2 | . 2 . . no_distress 1 | . 1 . . check_alert 1 | . 1 . . Relay Couplers Released . | . . . . Fabnet Peak Effective % . | . . . . Robots Rewired . | . . . . Allies Hacked . | . . . . Hacks Repelled . | . . . . Allies | -11 -10 -10 -10 -------- Run | Yrd Mat Min Sub Total Allies 1 | . . 1 . Largest Group 1 | . . 1 1 Highest-Rated Group 31 | . . 31 31 Highest-Rated Ally 31 | . . 31 31 Total Orders . | . . . . Ally Attacks . | . . . . Total Damage . | . . . . Kills . | . . . . Allies Corrupted . | . . . . Allies Melted . | . . . . Intel | -11 -10 -10 -10 ------- Run | Yrd Mat Min Sub Robot Analysis Total . | . . . . Derelict Logs Recovered 2 | . . 1 1 Drone Launches . | . . . . Drone Recoveries . | . . . . Exploration | -11 -10 -10 -10 ------------- Run | Yrd Mat Min Sub Turns Passed 3347 | 89 1740 940 578 Spaces Moved 1027 | 63 525 291 148 Core 18 | 17 . . 1 Treads 804 | . 404 291 109 Legs 205 | 46 121 . 38 Wheels . | . . . . Hover . | . . . . Flight . | . . . . Fastest Speed 50 | 50 120 320 320 Average Speed 297 | 107 293 320 352 Slowest Speed 1600 | 150 680 320 1600 Overloaded Moves . | . . . . Propulsion Burnouts . | . . . . Robots Hopped . | . . . . Cave-ins Triggered . | . . . . Exploration Rate (%) 43 | 5 75 79 16 Regions Visited 3 Branch Regions 2 Pre-discovered Areas . | . . . . Known Exits Taken . | . . . . Unknown Exits Taken 3 | 1 1 1 . Scrap Searched 4 | . . . 4 Spaces Dug . | . . . . Terrain Destroyed . | . . . . Melee . | . . . . Projectile . | . . . . AOE . | . . . . Terrain Rammed . | . . . . Walls Destroyed . | . . . . Machines Disabled . | . . . . Actions | -11 -10 -10 -10 --------- Run | Yrd Mat Min Sub Total 1187 | 82 631 299 175 Wait 33 | 5 27 . 1 Move 1024 | 62 524 290 148 Hop . | . . . . Pick Up 30 | 8 11 7 4 Fast Attach 6 | 5 1 . . Attach 8 | 1 4 . 3 Detach . | . . . . Swap 7 | . 6 1 . Drop 2 | 1 1 . . Fire 70 | . 51 . 19 Melee 5 | . 5 . . Ram . | . . . . Kick . | . . . . Crush 2 | . 1 1 . Escape Stasis . | . . . . Rewire . | . . . . Trap . | . . . . Miscellaneous . | . . . . Route ------- -11/Scrapyard -10/Materials (discovered 3 exits: [*Mat x2] / *Min) -10/Mines (discovered 4 exits: [*Mat x2] / Exi / [*Sub]) -10/Subcaves (discovered 1 exit: [*Mat]) History --------- Turn | Location | Event 12 | -11/Scrapyard | Discovered new exit (range 16) 90 | -11/Scrapyard | Entered Materials 187 | -10/Materials | Discovered new exit (range 9) 303 | -10/Materials | Build established: Mutant 590 | -10/Materials | Derelicts attacked the area 687 | -10/Materials | Repaired Med. Laser 857 | -10/Materials | Discovered new exit (range 16) 1457 | -10/Materials | Discovered new exit (range 17) 1830 | -10/Materials | Entered Mines 1851 | -10/Mines | Met a Derelict shopkeep closing up shop 2212 | -10/Mines | Discovered new exit (range 8) 2530 | -10/Mines | YI-UF0 nonchalantly dropped a Grenade Launcher on the ground 2623 | -10/Mines | Discovered new exit (range 15) 2645 | -10/Mines | Received a Mining Laser from a helpful Derelict 2700 | -10/Mines | Discovered new exit (range 10) 2719 | -10/Mines | Identified exit to Exiles 2770 | -10/Mines | Entered Subcaves 2770 | -10/Subcaves | Accompanied by 1 ally 2810 | -10/Subcaves | A swath of the cavern ceiling suddenly collapsed 2859 | -10/Subcaves | A swath of the cavern ceiling suddenly collapsed 2970 | -10/Subcaves | Learned Materials terminal intel 3103 | -10/Subcaves | Disturbed a concealed Subdweller 3125 | -10/Subcaves | Core integrity fell below 50% 3167 | -10/Subcaves | Lost 3 parts (1p2n) 3168 | -10/Subcaves | Core integrity fell below 20% 3341 | -10/Subcaves | Discovered new exit (range 13) 3348 | -10/Subcaves | Destroyed by ZB-53R(R) with Subdweller Machine Gun Last Messages --------------- 03243_ Acquired 42 matter. 03244_ Subatomizers dissect the Sub. Optics. 03246_ Searching scrap... 03246_ Found Sub. Beam Cannon. 03246_ Found 61 Matter. 03247_ Acquired 12 matter. 03258_ Acquired Piercing Trap. 03259_ Subatomizers dissect the Sub. Optics. 03263_ Searching scrap... 03263_ Found Battle Cannon. 03263_ Found 36 Matter. 03271_ Subatomizers dissect the Sub. Optics. 03287_ Acquired Battle Cannon. 03293_ Subatomizers dissect the Sub. Optics. 03315_ Subatomizers dissect the Sub. Beam Cannon. 03317_ Acquired 3 matter. 03319_ ZB-53R(R): "LEAVESUB!" 03341_ EXIT=FOUND Map ----- +----------------------------------------------------+ | ?????????????????????????????????????????????????? | | ?????????????????????????????????????????????????? | | ?????????????????????????????????????????????????? | | ?????????????????????????????????????????????????? | | ?????????????????????????????????????????????????? | | ?????????????????????????????????????????????????? | | ?????????????????????????????????????????????????? | | ?????????????????????????????????????????????????? | | ?????????????????????????????????????????????????? | | ?????????????????????????????????????????????????? | | ?????????????????????????????????????????????????? | | ?????????????????????????????????????????????????? | | ?????????????????????????##???# #????????????????? | | ????????????????????????# ##? ?????????????????? | | ???????????????????????? ## ?????????????????? | | ?????????????????##????? ??????????????????? | | ?????????????????# ????# ??????????????????? | | ??????????????????< ##### #??????????????????? | | ??????????????????? # # ##?????????????????? | | ???????????????????? ;#?????????????????? | | ????????????????????? ##????????????????? | | ????????????????????## ##???????????????? | | ????????????????????# ##??????????????? | | ?????????????????????# #??????????????? | | ?????????????????????# #??????????????? | | ???????????????????????# @ #??????????????? | | ??????????????????????## ####???????????????? | | ??????????????????????#; ;#??????????????????? | | ?????????????????????## ;##?#####???? #??????? | | ?????????????????###?# ##### ### ##?????? | | ????????????????## ### ;#### #?????? | | ????????????????#&]# ;< R### #?????? | | ????????????????##% #??????? | | ????????????????# %<## ### #???????? | | ????????????????##%## "#?? #????????? | | ?????????????????###### #### #?????????? | | ??????????????????????# #??????????? | | ??????????????????????## #??????????? | | ???????????????????????# #??????????? | | ??????????????????????## ### ## #??????????? | | ??????????????????????# #### ###??#??????????? | | ??????????????????????# ### #???????????????? | | ??????????????????????# ## #???????????????? | | ??????????????????????# ##???????????????? | | ??????????????????????# ### ##????????????????? | | ??????????????????????##### #?????????????????? | | ??????????????????????### ##?????????????????? | | ?????????????????????## ## ##?????????????????? | | #????##??????????????? # ##????????????????? | | ??## #????????????????# # #????????????????? | +----------------------------------------------------+ Best States ------------- Heat Dissipation 35 Energy Generation 10 Energy Capacity 250 Matter Stores 300 Matter Capacity 300 Sight Range 16 Terrain Scan Range 14 Terrain Scan Density 10 Armor Coverage 150 Resistance: KI 20 Evasion (%) 55 Recoil Reduction 2 Item Schematics ----------------- None Robot Schematics ------------------ None Fabricated ------------ Nothing Alien Tech Used ----------------- None Achievements -------------- None Challenges ------------ None Game ------ Seed FlightLauncherSpecial Manual? 0 Play Time 00:16:03 Cumulative 6.9 hours Start 2024.10.08 @ 14:36:45 End 2024.10.08 @ 14:51:37 Sessions 1 Manual Loads 0 Difficulty Rogue Special Mode None Game No. 21 Rogue 21 Adventurer 0 Explorer 0 Win Type - Total 0 Types 0/0/0/0/0/0/0/0/0 Lore% 5 Gallery% 10 Achievement% 11 Wizard Run 0 Options --------- Layout 1 ASCII 0 Keyboard 0 Movement Numpad Keybinds 0 Fullscreen 1 Font 32/SmallcapsGlow Map View 50x35 Zoom Use 0% Tactical HUD 1 Map Filters NONE Filters NONE Steam 1 RUN: eb05e2fd-367f-4182-805c-65fa01a3c99a